bitfinex/quotes_ETHUSD_20240819
["timestamp","ask_amount","ask_price","bid_price","bid_amount"]
[1724060808570,0.7,2609.6,2609.0,3.83288]
[1724060808753,0.7,2609.6,2609.2,3.83247]
[1724060808890,0.7,2609.6,2609.0,3.83281]
[1724060809512,0.7,2609.6,2609.1,3.83273]
[1724060809707,0.7,2609.6,2609.2,3.83258]
[1724060809922,0.7,2609.6,2609.1,3.83273]
[1724060810297,0.7,2609.6,2609.0,3.83281]
[1724060810498,0.7,2609.6,2609.0,3.83278]
[1724060810698,0.7,2609.6,2609.1,3.83273]
[1724060810899,0.7,2609.6,2608.6,3.83342]
[1724060811123,0.42448944,2609.5,2609.2,3.83248]
[1724060811446,0.42448944,2609.5,2609.4,3.83229]
[1724060811596,0.42448944,2609.5,2609.4,7.66458]
[1724060811802,0.7,2610.3,2609.7,3.83175]
[1724060812102,0.42497668,2610.2,2609.7,3.83175]
[1724060812524,0.42497668,2610.2,2609.5,3.83203]
[1724060812757,0.42497668,2610.2,2609.7,3.83175]
[1724060812944,0.42497668,2610.2,2609.8,3.83166]
[1724060813141,0.7,2610.3,2609.8,3.83166]
[1724060813362,0.42497668,2610.2,2609.9,3.83155]
[1724060813759,0.42497668,2610.1,2609.9,3.83147]
[1724060813954,0.42497668,2610.1,2609.9,3.83145]
[1724060814255,0.42497668,2610.0,2609.9,3.83145]
[1724060814570,0.7,2610.3,2609.9,3.83145]
[1724060814873,0.97574761,2610.2,2610.0,3.83139]
[1724060815368,0.97574761,2610.2,2609.8,7.66327]
[1724060815567,0.42574761,2610.2,2609.9,3.83147]
[1724060815774,0.7,2610.6,2610.0,3.8314]
[1724060816100,0.87879261,2610.5,2609.8,3.83158]
[1724060816270,0.87879261,2610.5,2610.0,3.8314]
[1724060816617,4.70947261,2610.5,2610.0,3.8314]
[1724060816823,0.75942175,2610.4,2610.1,3.83118]
[1724060817063,0.55,2610.3,2610.1,7.66235]
[1724060817247,0.42574761,2610.3,2610.1,3.83117]
[1724060817456,0.42574761,2610.3,2610.0,3.8314]
[1724060817680,3.83052,2610.7,2610.1,3.83126]
[1724060817827,0.42581763,2610.2,2610.1,3.83126]
[1724060818025,0.933052,2610.6,2610.1,3.83126]
[1724060820465,0.42588414,2610.3,2610.2,3.83112]
[1724060820806,0.42588414,2610.3,2610.2,7.66224]
[1724060820944,0.7,2610.9,2610.2,3.83112]
[1724060821150,0.42588414,2610.8,2610.3,3.83096]
[1724060821346,4.25620414,2610.8,2610.1,7.66233]
[1724060821598,4.25620414,2610.8,2609.3,2.4823]
[1724060821599,0.7,2610.5,2609.3,6.31469]
[1724060821762,0.7,2610.5,2609.6,3.83199]
[1724060821763,3.83125,2610.2,2609.6,3.83199]
[1724060821958,3.83091,2610.4,2609.6,3.83199]
[1724060821959,0.80949238,2610.1,2609.6,3.83192]
[1724060822160,0.42636738,2610.1,2609.8,3.8317]
[1724060822500,3.0,2610.7,2610.0,3.83133]
[1724060822665,4.5303,2610.8,2610.2,3.83107]
[1724060822666,0.55,2610.6,2610.2,3.83107]
[1724060822851,1.00303,2610.7,2610.2,3.83107]
[1724060823264,1.00303,2610.7,2610.3,3.8309]
[1724060823499,0.55,2610.7,2610.4,3.83082]
[1724060823724,0.55,2610.7,2609.3,6.946195]
[1724060823725,3.83048,2610.7,2610.1,3.83126]
[1724060823997,0.383048,2610.6,2610.1,3.83126]
[1724060825203,0.383048,2610.6,2610.2,3.83107]
[1724060825366,8.21036,2610.9,2610.3,3.83097]
[1724060825723,3.83026,2610.8,2610.1,7.66238]
[1724060826009,0.97590301,2610.7,2610.2,3.83108]
[1724060826225,3.83132,2610.1,2609.5,3.83207]
[1724060826520,0.383132,2610.0,2609.7,3.83183]
[1724060826721,0.42597654,2610.0,2609.8,3.83162]
[1724060826868,3.83106,2610.3,2609.7,3.83183]
[1724060827209,3.83113,2610.2,2609.7,3.83183]
[1724060827419,0.42597654,2610.1,2609.7,7.66349]
[1724060827620,3.83106,2610.3,2609.8,3.83168]
[1724060827912,7.583,2610.7,2609.4,3.83223]
[1724060827913,0.42597654,2610.2,2609.4,3.83223]
[1724060828070,0.42597654,2610.2,2610.1,3.83127]
[1724060828276,0.7,2610.8,2610.3,3.8309]
[1724060828579,0.7,2610.8,2610.2,3.83111]
[1724060828580,5.283295,2610.8,2610.2,3.83111]
[1724060828986,3.83046,2610.7,2610.2,3.83111]
[1724060829512,3.83046,2610.7,2610.1,3.83127]
[1724060829813,4.28998175,2610.6,2610.0,7.66262]
[1724060830014,0.42899818,2610.5,2609.9,3.83156]
[1724060830323,3.83099,2610.3,2609.8,3.83169]
[1724060830668,3.83099,2610.3,2609.6,3.8319]
[1724060830669,3.83134,2610.1,2609.6,3.832]
[1724060830918,0.383134,2610.0,2609.6,3.832]
[1724060831328,0.383134,2610.0,2609.6,3.83191]
[1724060831475,3.83112,2610.2,2609.5,3.83214]
[1724060831682,3.832,2609.6,2609.1,3.83267]
[1724060831929,7.66409,2609.6,2609.0,3.83287]
[1724060832089,0.766409,2609.5,2609.0,3.83287]
[1724060832284,3.832,2609.7,2609.1,3.8327]
[1724060832603,3.832,2609.7,2608.4,2.498]
[1724060832604,3.83194,2609.7,2608.4,2.498]
[1724060832913,3.83266,2609.2,2608.6,3.8334]
[1724060833225,3.83277,2609.1,2608.6,3.8334]
[1724060833446,3.83266,2609.2,2608.6,7.66675]
[1724060833598,0.383266,2609.1,2608.6,3.83336]
[1724060833801,0.01350275,2609.4,2609.0,3.83281]
[1724060833990,0.01350275,2609.4,2608.8,3.83306]
[1724060834178,3.83268,2609.2,2608.5,3.83354]
[1724060834383,3.8329,2609.0,2608.4,2.498]
[1724060834622,0.71350275,2609.4,2608.1,3.83419]
[1724060834623,3.83335,2608.7,2608.1,3.83411]
[1724060834824,0.383335,2608.6,2608.1,3.83411]
[1724060835245,1.083335,2608.6,2607.0,0.06663007]
[1724060835396,3.83385,2608.4,2607.4,3.8351]
[1724060835601,0.56350275,2608.5,2607.9,3.83437]
[1724060835602,0.43973528,2608.3,2607.9,3.83437]
[1724060835932,0.3827,2609.1,2607.9,2.3569]
[1724060836250,0.01350275,2609.2,2608.5,3.83362]
[1724060836453,3.83236,2609.4,2608.6,2.3569]
[1724060836751,0.01350275,2609.3,2608.8,3.83316]
[1724060836940,0.01350275,2609.3,2608.6,2.3569]
[1724060837140,3.84601275,2609.3,2608.6,2.3569]
[1724060837651,0.01350275,2609.3,2608.8,3.83308]
[1724060837848,3.83196,2609.7,2609.0,3.83286]
[1724060838047,3.83196,2609.7,2608.9,3.83301]
[1724060838048,3.83215,2609.5,2608.9,3.83301]
[1724060838248,3.83252,2609.3,2608.7,3.83319]
[1724060838422,3.83221,2609.5,2608.8,3.83317]
[1724060838423,0.40076857,2609.4,2608.8,3.83317]
[1724060838603,0.40076857,2609.4,2609.0,3.83288]
[1724060838937,3.84986357,2609.4,2608.7,3.8333]
[1724060839138,3.84986357,2609.4,2608.8,3.8331]
[1724060839351,0.01755357,2609.4,2608.9,3.83301]
[1724060839515,0.76821136,2609.3,2608.9,3.83301]
[1724060839866,0.01755357,2608.6,2607.8,3.83452]
[1724060840000,0.01755357,2608.6,2607.4,6.3016]
[1724060840001,3.83407,2608.2,2607.4,6.3016]
[1724060840209,3.83436,2608.0,2607.5,3.83508]
[1724060840400,3.83436,2608.0,2607.4,2.4665]
[1724060840401,7.66882,2608.0,2607.4,6.30173]
[1724060840596,4.21916436,2608.0,2607.4,6.30173]
[1724060840798,3.83503,2607.6,2606.8,0.00484051]
[1724060841030,3.8351,2607.5,2606.8,0.00484051]
[1724060841228,4.602283,2607.4,2606.8,3.84087051]
[1724060841432,0.41080656,2607.4,2606.9,3.83596]
[1724060841750,0.41080656,2607.4,2607.3,3.83538]
[1724060841902,0.41080656,2607.4,2607.1,6.22446]
[1724060842098,3.83464,2607.8,2607.1,2.3889]
[1724060842413,0.383474,2607.7,2607.2,3.83547]
[1724060842632,0.41080656,2607.7,2607.3,3.8353]
[1724060842951,3.8345,2607.9,2607.1,6.22451]
[1724060842952,3.83451,2607.9,2607.1,6.22451]
[1724060843149,0.41080656,2607.6,2607.1,2.3889]
[1724060843298,3.83536,2607.4,2606.8,3.84086051]
[1724060843681,7.67029,2607.5,2606.9,3.83588]
[1724060843947,0.41080656,2607.3,2606.8,0.00484051]
[1724060844131,0.01755357,2607.7,2607.0,3.83569]
[1724060844132,3.85243357,2607.7,2607.0,3.83569]
[1724060844341,0.41080656,2607.2,2607.0,3.83569]
[1724060844655,0.78715017,2607.9,2606.8,0.00484051]
[1724060844943,0.63677228,2607.9,2607.5,3.83497]
[1724060845142,0.55,2607.8,2607.1,3.83557]
[1724060845445,0.50387558,2607.8,2607.6,3.83491]
[1724060845645,0.01755357,2608.0,2607.6,3.83491]
[1724060845847,0.01755357,2608.0,2607.4,3.83509]
[1724060845999,0.01755357,2608.0,2607.3,3.83536]
[1724060846000,3.83465,2607.8,2607.3,3.83536]
[1724060846245,0.383465,2607.7,2607.3,3.83536]
[1724060846579,3.85203357,2608.0,2607.3,3.83531]
[1724060846779,3.83503,2607.6,2606.9,3.83589]
[1724060846950,3.83503,2607.6,2606.8,3.84092051]
[1724060846951,3.83524,2607.4,2606.8,3.84084051]
[1724060847288,3.83524,2607.4,2606.8,0.00484051]
[1724060847441,4.22072936,2607.3,2606.8,0.00484051]
[1724060847637,3.83553,2607.2,2606.8,0.00484051]
[1724060847889,3.83597,2606.9,2606.8,0.00484051]
[1724060848595,0.01415088,2607.0,2606.8,0.00484051]
[1724060849100,0.01415088,2606.9,2606.8,0.00484051]
[1724060849385,0.01415088,2606.9,2605.5,3.83798]
[1724060849386,0.7,2605.9,2604.8,0.1183503]
[1724060849586,3.83759,2605.8,2605.0,3.87865]
[1724060849770,0.4421823,2605.7,2605.0,3.87865]
[1724060849936,0.4421823,2605.7,2605.2,3.83844]
[1724060850138,0.4421823,2605.7,2605.0,0.04]
[1724060850139,3.83862,2605.1,2605.0,0.04]
[1724060850459,0.01415088,2605.1,2605.0,0.04]
[1724060850787,0.01415088,2605.3,2605.0,0.04]
[1724060851092,3.83862,2605.1,2605.0,0.04]
[1724060851255,3.83862,2605.1,2604.8,0.1183503]
[1724060851256,7.67782,2604.9,2604.8,0.09050808]
[1724060851589,10.69197088,2604.9,2604.8,0.09050808]
[1724060852084,15.08088088,2604.9,2604.8,0.09050808]
[1724060852293,12.21808,2604.6,2603.8,0.00283817]
[1724060852471,16.05744,2604.6,2604.5,7.9e-06]
[1724060852639,16.07159088,2604.6,2604.5,7.9e-06]
[1724060852835,15.23223088,2604.6,2604.5,7.9e-06]
[1724060853039,11.39287088,2604.6,2604.5,7.9e-06]
[1724060853696,0.01415088,2604.6,2604.5,7.9e-06]
[1724060853949,3.85351088,2604.6,2604.5,7.9e-06]
[1724060854241,0.39950197,2604.6,2604.5,7.9e-06]
[1724060854538,0.94950197,2604.6,2604.5,7.9e-06]
[1724060854689,0.01415088,2604.6,2604.5,7.9e-06]
[1724060854890,3.85351088,2604.6,2604.5,7.9e-06]
[1724060855126,0.01415088,2604.6,2604.5,7.9e-06]
[1724060855654,4.539,2604.9,2604.5,7.9e-06]
[1724060855655,3.83892,2604.9,2604.5,7.9e-06]
[1724060855789,0.46805088,2604.8,2604.5,7.9e-06]
[1724060855990,3.839,2604.9,2604.5,7.9e-06]
[1724060856261,0.40991933,2604.7,2604.5,7.9e-06]
[1724060856435,4.53923,2604.7,2604.5,7.9e-06]
[1724060856648,0.87799321,2604.6,2604.5,7.9e-06]
[1724060857131,0.01677582,2604.5,2604.1,7.68]
[1724060857330,0.40991933,2604.6,2604.4,3.83965]
[1724060857552,0.7,2604.6,2604.0,3.84019]
[1724060857756,3.84039,2603.9,2603.8,0.00283817]
[1724060858114,3.85716582,2603.9,2603.8,0.00283817]
[1724060858448,3.85716582,2603.9,2602.9,4.20244]
[1724060858449,7.68136,2603.7,2602.9,4.20244]
[1724060858641,3.84068,2603.7,2603.0,3.8417]
[1724060858842,4.39068,2603.7,2603.1,6.24093]
[1724060859045,4.80059933,2603.7,2603.1,6.24093]
[1724060859247,4.80059933,2603.7,2603.1,2.3994]
[1724060859248,0.95991933,2603.7,2603.1,2.3994]
[1724060859455,8.64127933,2603.7,2603.1,2.3994]
[1724060859669,0.95991933,2603.7,2603.1,2.3994]
[1724060859804,0.40991933,2603.7,2603.2,3.84133]
[1724060860126,0.7,2603.7,2603.1,2.3994]
[1724060860442,0.55,2603.6,2603.1,6.24087]
[1724060860653,0.01677582,2603.9,2603.2,3.84133]
[1724060860816,0.40991933,2603.5,2603.4,3.84101]
[1724060861144,0.01677582,2604.3,2603.8,3.84044]
[1724060861379,0.40991933,2603.5,2603.1,2.3994]
[1724060861587,0.7,2604.2,2603.1,2.3994]
[1724060861588,0.01677582,2603.9,2603.1,2.3994]
[1724060861871,3.84011,2604.1,2603.4,3.84103]
[1724060862046,0.4067109,2603.8,2603.4,3.84103]
[1724060862369,3.85703582,2604.0,2603.4,3.841]
[1724060862587,0.40670733,2603.7,2603.4,3.841]
[1724060862746,0.01677582,2604.0,2603.4,3.841]
[1724060862950,0.40676811,2603.9,2603.4,3.841]
[1724060863244,0.40676811,2603.9,2603.5,3.84094]
[1724060863445,0.40676811,2603.9,2603.6,7.68166]
[1724060863753,0.40676811,2603.9,2603.8,3.84054]
[1724060864363,3.83972,2604.4,2603.8,3.84053]
[1724060864364,0.01677582,2604.3,2603.8,3.84053]
[1724060864564,0.40677168,2603.9,2603.8,3.84053]
[1724060864747,1.02074782,2604.3,2603.8,3.84053]
[1724060864748,1.003972,2604.3,2603.8,3.84053]
[1724060864951,0.40677168,2603.9,2603.8,7.68107]
[1724060865149,0.01677582,2604.4,2604.0,3.84014]
[1724060865671,0.39332262,2604.3,2604.0,3.84014]
[1724060865977,0.39332262,2604.3,2604.2,3.83995]
[1724060866185,0.39332262,2604.3,2604.2,13.88495]
[1724060866474,3.83799,2605.6,2605.0,3.83874]
[1724060866692,3.83747,2605.9,2605.2,3.83844]
[1724060866847,3.83747,2605.9,2605.4,3.83806]
[1724060866848,0.01677582,2605.9,2605.4,3.83806]
[1724060867047,0.01677582,2605.9,2605.3,3.83832]
[1724060867254,3.85429582,2605.9,2605.4,3.83817]
[1724060867477,0.01457087,2606.0,2605.4,3.8381]
[1724060867651,0.7,2606.4,2605.4,3.83804]
[1724060867843,3.85194087,2606.0,2605.4,3.83804]
[1724060868046,0.38519409,2605.9,2605.4,3.83804]
[1724060868285,0.38519409,2605.9,2605.4,3.83816]
[1724060868491,0.38519409,2605.9,2605.4,3.83814]
[1724060868927,0.38519409,2605.9,2605.1,3.83854]
[1724060869110,0.01457087,2605.7,2605.2,3.83837]
[1724060869512,0.01457087,2605.7,2603.7,3.84063]
[1724060869818,0.01457087,2605.7,2599.6,3.24697295]
[1724060869819,12.23123,2600.5,2600.4,4.77086544]
[1724060870012,12.23123,2600.5,2597.8,2.3037]
[1724060870013,19.22855,2600.3,2597.8,2.3037]
[1724060870320,9.17157087,2600.5,2597.3,3.26177654]
[1724060870321,0.7,2599.8,2599.3,4.45e-06]
[1724060870529,3.8459,2600.2,2597.3,0.01480359]
[1724060870530,0.7,2598.9,2597.7,2.83558226]
[1724060870730,0.01457087,2599.4,2597.7,2.83558226]
[1724060870731,0.7,2597.9,2597.7,2.83558226]
[1724060870962,2.2983,2598.7,2597.7,2.83558226]
[1724060870963,3.8491,2598.1,2597.7,2.83558226]
[1724060871180,3.84941,2597.8,2597.7,2.83558226]
[1724060871477,12.2491,2597.6,2597.5,9.55e-06]
[1724060871616,12.2491,2597.6,2597.3,0.01480359]
[1724060871617,7.7,2597.4,2597.3,3.14e-06]
[1724060871811,8.40178,2596.8,2595.8,0.48519027]
[1724060872056,4.56546087,2596.8,2595.8,0.45407777]
[1724060872255,4.56546087,2596.8,2594.5,0.05]
[1724060872256,3.8511,2596.7,2596.3,5.13304205]
[1724060872459,7.70277,2596.5,2596.3,0.84304205]
[1724060872696,7.70277,2596.5,2593.3,1.6664222]
[1724060872697,0.7,2594.6,2593.3,1.6664222]
[1724060872984,0.05,2596.3,2590.5,1.00633694]
[1724060872985,7.7202,2590.6,2590.5,1.00633694]
[1724060873191,7.7202,2590.6,2586.8,0.00803787]
[1724060873192,0.7,2588.7,2586.8,0.00803787]
[1724060873480,5.457,2587.3,2587.2,1.83535289]
[1724060873616,4.56667,2586.2,2586.1,0.80535695]
[1724060873823,5.120281,2587.3,2582.2,3.9456935]
[1724060873824,3.86778,2585.5,2583.1,0.1140904]
[1724060874134,3.86778,2585.5,2581.1,10.25571948]
[1724060874135,2.4387,2583.3,2580.2,3.87558]
[1724060874332,3.86852,2585.0,2579.2,0.07614275]
[1724060874333,0.7,2582.6,2581.0,0.05]
[1724060874533,5.74,2581.8,2580.9,0.22404463]
[1724060874784,6.76,2581.5,2577.4,3.87978]
[1724060875064,7.589,2581.4,2580.2,5.74]
[1724060875271,7.589,2581.4,2577.2,1.91689656]
[1724060875272,7.93156759,2581.4,2580.3,0.22404463]
[1724060875418,7.93156759,2581.4,2576.4,2.2518]
[1724060875419,2.684047,2581.3,2578.2,0.22404463]
[1724060875771,0.41727026,2580.9,2578.2,7.81e-06]
[1724060875917,3.87567,2580.2,2578.1,1.75772349]
[1724060876112,3.87608,2580.0,2578.1,1.75772349]
[1724060876401,7.93156759,2580.1,2578.2,2.82397109]
[1724060876565,3.87321,2581.9,2578.2,2.82397109]
[1724060876566,0.7,2581.9,2578.2,0.25457001]
[1724060876784,3.87723,2579.2,2574.3,0.05]
[1724060876951,7.487,2577.7,2574.3,0.05]
[1724060877120,1.3471911,2579.0,2577.1,3.8803]
[1724060877324,3.88,2579.0,2575.8,7.077]
[1724060877686,0.88378367,2580.0,2575.2,1.95613935]
[1724060877687,3.88,2578.1,2575.2,1.95613935]
[1724060877842,3.83,2576.8,2575.5,3.88271]
[1724060878017,3.83,2576.8,2575.1,5.80401863]
[1724060878018,3.73,2576.8,2575.1,5.80401863]
[1724060878213,3.88312,2575.3,2575.1,5.80401863]
[1724060878414,0.43074537,2577.9,2575.1,6.43953049]
[1724060878645,3.88169,2576.2,2575.1,8.29911863]
[1724060878896,0.55,2576.1,2575.1,7.29911863]
[1724060879176,14.34473,2580.9,2575.2,0.78502186]
[1724060879317,4.26598986,2576.0,2575.8,10.66742255]
[1724060879513,3.87921,2577.9,2576.0,2.4951]
[1724060879719,1.95587599,2581.7,2575.9,1.06674225]
[1724060879720,1.99884792,2580.9,2576.9,2.4951]
[1724060880018,3.87855,2578.3,2577.3,4.01630699]
[1724060880246,1.96579728,2581.4,2577.3,4.01630699]
[1724060880247,3.87334,2581.8,2577.6,2.4259]
[1724060880448,3.87554,2580.3,2578.4,4.01630699]
[1724060880691,7.7539,2580.2,2578.4,4.01630699]
[1724060880874,3.87183,2582.8,2578.3,1.03739547]
[1724060881041,1.37914345,2583.1,2578.2,2.4259]
[1724060881042,3.87213,2582.6,2578.4,0.34632955]
[1724060881237,3.87213,2582.6,2578.6,3.87797]
[1724060881238,1.554158,2581.3,2578.6,3.87797]
[1724060881438,0.48342444,2581.6,2578.4,4.22457955]
[1724060881634,0.48342444,2582.2,2578.2,2.4259]
[1724060881838,0.22404463,2582.5,2578.2,2.4259]
[1724060881839,1.553587,2581.9,2579.1,7.077]
[1724060882090,7.7513,2582.1,2579.4,3.87674]
[1724060882091,3.87293,2582.1,2579.4,3.87674]
[1724060882249,3.87258,2582.3,2579.6,3.87652]
[1724060882582,1.552829,2583.5,2579.6,3.87652]
[1724060882583,0.43301981,2582.6,2579.6,3.87652]
[1724060882797,0.43135315,2582.2,2579.6,0.387652]
[1724060882939,3.87271,2582.2,2579.7,3.8764]
[1724060883144,3.87271,2582.2,2579.5,3.87668]
[1724060883439,3.87271,2582.2,2579.3,2.3304]
[1724060883440,0.7,2581.7,2579.8,3.87625]
[1724060883650,0.7,2581.7,2579.7,0.05]
[1724060883855,3.87174,2582.9,2579.5,3.0]
[1724060883856,0.7,2582.9,2580.7,0.05]
[1724060884201,7.077,2584.6,2580.7,0.05]
[1724060884202,0.7,2583.3,2582.0,3.87285]
[1724060884489,0.05,2584.8,2581.2,6.24775]
[1724060884490,0.03375687,2583.2,2582.4,3.87233]
[1724060884793,0.03375687,2584.1,2582.7,0.05]
[1724060884959,0.73375687,2584.5,2582.9,0.05]
[1724060885157,0.03375687,2584.5,2583.0,2.2954]
[1724060885356,9.0967,2585.9,2583.0,2.2954]
[1724060885357,0.03375687,2585.0,2584.0,3.86995]
[1724060885658,9.0967,2585.9,2584.0,3.86995]
[1724060885659,0.7,2585.8,2584.3,0.05]
[1724060885884,0.38389986,2584.9,2584.8,3.8687]
[1724060886066,9.0967,2585.9,2584.7,0.05]
[1724060886267,9.0967,2585.9,2584.9,2.3454]
[1724060886467,9.0967,2585.9,2585.1,3.86817]
[1724060886671,9.0967,2585.9,2584.9,2.2954]
[1724060886672,9.0967,2585.9,2584.8,0.05]
[1724060886884,9.0967,2585.9,2584.5,0.19465281]
[1724060887087,9.0967,2585.9,2585.8,7.73454]
[1724060887252,9.0967,2585.9,2584.8,0.05]
[1724060887454,9.0967,2585.9,2585.6,3.86755]
[1724060887658,9.0967,2585.9,2585.3,3.86799]
[1724060887878,9.0967,2585.9,2585.8,7.73454]
[1724060888378,9.0967,2585.9,2585.8,11.65181]
[1724060888564,9.0967,2585.9,2585.8,7.78454]
[1724060888923,6.5967,2585.9,2585.8,11.65181]
[1724060889071,0.03375687,2587.5,2586.0,0.05]
[1724060889411,1.549228,2590.2,2585.4,3.0]
[1724060889412,0.03375687,2588.7,2587.2,0.05]
[1724060889615,0.08375687,2588.7,2588.1,3.86373]
[1724060889826,0.05,2588.8,2588.4,3.86337]
[1724060890161,0.05,2588.5,2587.2,3.86515]
[1724060890394,0.05,2588.7,2587.2,0.65132937]
[1724060890614,0.05,2588.7,2587.5,3.86469]
[1724060890904,0.05,2589.2,2589.0,3.86248]
[1724060891110,0.05,2588.8,2588.1,3.86373]
[1724060891317,0.05,2589.1,2588.8,3.86275]
[1724060891558,0.05,2589.1,2588.9,3.8626]
[1724060891666,0.05,2589.3,2589.1,3.86232]
[1724060891867,0.05,2589.3,2588.5,3.86322]
[1724060892066,0.05,2589.3,2589.2,3.86219]
[1724060892320,0.05,2589.5,2589.3,3.86201]
[1724060892485,0.05,2590.0,2589.6,3.86152]
[1724060892682,0.05,2589.7,2589.6,3.86152]
[1724060893200,0.05,2589.9,2589.8,3.8613]
[1724060893621,0.05,2590.1,2589.8,3.8613]
[1724060893771,0.05,2590.3,2590.2,3.8607]
[1724060894210,0.04,2591.0,2590.6,3.86]
[1724060894412,0.04,2591.0,2590.9,3.85966]
[1724060894615,0.04,2591.0,2590.9,7.71932]
[1724060894909,0.09,2591.0,2590.9,3.85966]
[1724060895118,0.05,2589.6,2588.1,7.077]
[1724060895352,0.05,2589.6,2587.9,3.86408]
[1724060895353,0.05,2588.9,2587.9,3.86408]
[1724060895473,2.3888,2590.9,2588.3,3.86342]
[1724060895474,0.05,2589.5,2588.3,3.86342]
[1724060895670,0.05,2589.7,2589.5,3.86171]
[1724060895883,0.05,2588.9,2588.8,3.86268]
[1724060896086,0.7,2589.6,2589.0,3.86249]
[1724060896087,0.05,2589.1,2589.0,3.86249]
[1724060896284,3.86058,2590.3,2588.0,3.86386]
[1724060896285,0.05,2588.1,2588.0,3.86386]
[1724060896499,0.05,2588.1,2586.8,3.86578]
[1724060896500,0.05,2586.9,2586.8,3.86578]
[1724060896872,0.05,2586.9,2586.7,3.86588]
[1724060897074,0.05,2586.3,2586.0,3.86695]
[1724060897275,0.05,2587.0,2586.2,3.86653]
[1724060897480,0.05,2587.0,2585.7,0.01888968]
[1724060897673,0.55,2589.1,2585.7,0.01888968]
[1724060897674,0.05,2587.3,2586.4,3.86636]
[1724060897878,0.05,2586.9,2586.5,3.8662]
[1724060898187,0.05,2587.2,2586.8,3.86577]
[1724060898519,6.86321,2588.6,2585.6,1.91480799]
[1724060898520,0.05,2588.2,2587.8,3.86428]
[1724060898723,0.05,2588.5,2588.3,3.86348]
[1724060898882,0.7,2589.4,2587.5,3.86463]
[1724060898883,0.05,2588.7,2587.5,3.86463]
[1724060899230,0.05,2589.0,2588.2,3.86354]
[1724060899526,0.05,2589.0,2586.8,13.19564]
[1724060899527,0.05,2588.4,2588.1,3.86383]
[1724060899871,0.05,2588.4,2587.4,3.86481]
[1724060900077,0.05,2588.9,2588.4,3.86337]
[1724060900321,0.05,2588.7,2588.4,3.86337]
[1724060900522,0.05,2588.5,2588.2,3.86356]
[1724060900683,0.05,2588.5,2588.2,3.8636]
[1724060900889,0.05,2588.5,2588.4,3.86339]
[1724060901088,0.05,2588.8,2587.3,3.86492]
[1724060901341,0.05,2589.0,2587.4,3.0]
[1724060901614,0.05,2588.8,2588.5,3.86313]
[1724060901818,0.05,2589.0,2588.7,3.86294]
[1724060902125,0.05,2589.4,2589.1,3.86232]
[1724060902276,0.05,2589.4,2588.9,3.86264]
[1724060902277,0.05,2589.4,2588.6,3.86302]
[1724060902472,0.05,2589.2,2588.9,3.86253]
[1724060902930,0.05,2589.4,2588.9,3.86253]
[1724060903237,3.85996,2590.7,2588.1,3.86372]
[1724060903238,0.05,2589.6,2589.2,3.86204]
[1724060903404,0.05,2589.8,2588.6,3.86306]
[1724060903611,0.05,2589.6,2589.3,3.8619]
[1724060903806,0.05,2589.8,2589.6,3.86159]
[1724060903997,0.05,2589.8,2589.7,3.86145]
[1724060904525,0.2022954,2591.5,2589.1,3.86228]
[1724060904526,0.05,2590.2,2589.9,3.86115]
[1724060904725,0.05,2590.8,2589.7,3.86138]
[1724060905026,0.05,2591.3,2590.9,3.85966]
[1724060905394,0.05,2591.3,2590.9,7.71932]
[1724060905754,0.05,2590.9,2590.8,3.85976]
[1724060905893,0.05,2590.9,2590.6,3.86009]
[1724060906094,0.05,2590.2,2589.7,3.86143]
[1724060906333,0.05,2590.2,2589.7,3.86145]
[1724060906708,0.05,2590.2,2589.8,3.86129]
[1724060906912,0.05,2590.2,2590.0,3.86087]
[1724060907230,0.05,2590.4,2590.3,3.86055]
[1724060907426,0.05,2590.6,2590.3,3.86055]
[1724060907606,0.04,2591.0,2589.5,0.50248592]
[1724060907607,0.05,2590.8,2589.5,0.50248592]
[1724060907805,0.04,2591.0,2588.4,7.077]
[1724060907806,0.05,2589.4,2588.4,7.077]
[1724060908010,0.05,2589.4,2588.9,3.8626]
[1724060908329,0.05,2589.4,2589.0,3.86242]
[1724060908536,3.86004,2590.7,2588.4,3.86327]
[1724060908537,0.05,2590.0,2589.7,3.86131]
[1724060908716,0.05,2590.0,2589.4,3.86183]
[1724060908905,0.05,2590.1,2589.9,3.86107]
[1724060909455,0.05,2590.3,2589.2,3.86212]
[1724060909596,0.04,2591.0,2590.4,3.8604]
[1724060909597,0.05,2590.5,2590.4,3.8604]
[1724060910244,0.04,2591.0,2590.6,3.8601]
[1724060910245,0.05,2590.7,2590.6,3.8601]
[1724060910450,0.05,2590.7,2590.6,3.05444906]
[1724060910750,0.04,2591.0,2587.8,4.31024492]
[1724060910751,0.05,2590.0,2589.3,4.33255176]
[1724060910966,0.05,2590.0,2589.3,3.86191]
[1724060911124,0.05,2589.3,2589.0,0.47064176]
[1724060911454,0.05,2589.1,2589.0,3.86249]
[1724060911667,0.05,2589.3,2588.5,3.86317]
[1724060911812,0.05,2589.1,2588.4,0.49772002]
[1724060912025,0.01026209,2590.2,2588.0,3.86385]
[1724060912026,0.05,2588.3,2588.0,3.86385]
[1724060912373,0.05,2588.3,2586.3,3.86651]
[1724060912374,0.05,2587.6,2586.9,3.8656]
[1724060912509,0.7,2588.1,2586.5,3.86619]
[1724060912710,3.86458,2587.6,2586.7,3.86579]
[1724060913028,0.37085411,2588.0,2586.4,0.49772002]
[1724060913212,3.86455,2587.7,2586.4,0.49772002]
[1724060913412,0.01026209,2588.0,2586.4,0.49772002]
[1724060913413,0.37085411,2587.9,2586.4,0.49772002]
[1724060913614,3.86578,2586.8,2585.6,3.86756]